[Event "Titled Tuesday Blitz October 18 Late 2022"]
[White "Tomaszewski, Kacper"]
[Black "Omariev, Maksim"]
[WhiteFideId "1127373"]
[BlackFideId "4193423"]
[WhiteElo "2211"]
[BlackElo "2411"]
[Result "1-0"]
[Round "10"]
[TimeControl "180+1"]
[Date "2022.10.19"]
[WhiteClock "0:00:11"]
[BlackClock "0:00:02"]

1. c4 {[%clk 0:03:00]}  e5 {[%clk 0:02:57]} 2. e3 {[%clk 0:02:59]}  Nc6 {[%clk 0:02:57]} 3. Nc3 {[%clk 0:02:55]}  Nf6 {[%clk 0:02:57]} 4. a3 {[%clk 0:02:54]}  Bc5 {[%clk 0:02:48]} 5. b4 {[%clk 0:02:53]}  Be7 {[%clk 0:02:47]} 6. Bb2 {[%clk 0:02:52]}  O-O {[%clk 0:02:45]} 7. Qc2 {[%clk 0:02:51]}  Re8 {[%clk 0:02:46]} 8. Be2 {[%clk 0:02:48]}  Bf8 {[%clk 0:02:46]} 9. d3 {[%clk 0:02:43]}  d5 {[%clk 0:02:46]} 10. cxd5 {[%clk 0:02:42]}  Nxd5 {[%clk 0:02:46]} 11. Nf3 {[%clk 0:02:41]}  a6 {[%clk 0:02:41]} 12. O-O {[%clk 0:02:40]}  Be6 {[%clk 0:02:39]} 13. Rac1 {[%clk 0:02:40]}  Nxc3 {[%clk 0:02:32]} 14. Qxc3 {[%clk 0:02:37]}  f6 {[%clk 0:02:29]} 15. Rfd1 {[%clk 0:02:36]}  Bd6 {[%clk 0:02:16]} 16. Nd2 {[%clk 0:02:36]}  a5 {[%clk 0:02:13]} 17. b5 {[%clk 0:02:30]}  Na7 {[%clk 0:02:14]} 18. d4 {[%clk 0:02:28]}  Qd7 {[%clk 0:01:56]} 19. a4 {[%clk 0:02:22]}  Bb4 {[%clk 0:01:53]} 20. Qc2 {[%clk 0:02:21]}  exd4 {[%clk 0:01:51]} 21. Nf3 {[%clk 0:02:17]}  c5 {[%clk 0:01:48]} 22. exd4 {[%clk 0:02:11]}  Rac8 {[%clk 0:01:35]} 23. dxc5 {[%clk 0:02:10]}  Qf7 {[%clk 0:01:31]} 24. c6 {[%clk 0:01:53]}  Rc7 {[%clk 0:00:43]} 25. Bd4 {[%clk 0:01:41]}  Nc8 {[%clk 0:00:36]} 26. Bc4 {[%clk 0:01:37]}  bxc6 {[%clk 0:00:31]} 27. b6 {[%clk 0:01:29]}  Rd7 {[%clk 0:00:23]} 28. Bxe6 {[%clk 0:01:21]}  Rxe6 {[%clk 0:00:24]} 29. Be3 {[%clk 0:01:18]}  Rxd1+ {[%clk 0:00:20]} 30. Rxd1 {[%clk 0:01:18]}  Qe7 {[%clk 0:00:17]} 31. Nd4 {[%clk 0:01:14]}  Rd6 {[%clk 0:00:16]} 32. Nxc6 {[%clk 0:01:02]}  Qb7 {[%clk 0:00:14]} 33. Qc4+ {[%clk 0:00:53]}  Kf8 {[%clk 0:00:13]} 34. Rxd6 {[%clk 0:00:45]}  Nxd6 {[%clk 0:00:14]} 35. Qd5 {[%clk 0:00:36]}  Nc8 {[%clk 0:00:03]} 36. Bc5+ {[%clk 0:00:33]}  Bxc5 {[%clk 0:00:03]} 37. Qxc5+ {[%clk 0:00:33]}  Ke8 {[%clk 0:00:03]} 38. Nxa5 {[%clk 0:00:29]}  Qd7 {[%clk 0:00:02]} 39. h4 {[%clk 0:00:20]}  Qd1+ {[%clk 0:00:01]} 40. Kh2 {[%clk 0:00:21]}  Qxa4 {[%clk 0:00:02]} 41. Qxc8+ {[%clk 0:00:18]}  Ke7 {[%clk 0:00:01]} 42. b7 {[%clk 0:00:14]}  Qxh4+ {[%clk 0:00:01]} 43. Kg1 {[%clk 0:00:13]}  Qe4 {[%clk 0:00:01]} 44. b8=Q {[%clk 0:00:11]}  Qe1+ {[%clk 0:00:02]} 45. Kh2 {[%clk 0:00:11]} 1-0


[Site "https://www.chess.com"]

[Event "Titled Tuesday Blitz October 18 Late 2022"]
[White "Tsaruk, Maksim"]
[Black "Licznerski, Lukasz"]
[WhiteFideId "13511173"]
[BlackFideId "1179250"]
[WhiteElo "2273"]
[BlackElo "2403"]
[Result "0-1"]
[Round "10"]
[TimeControl "180+1"]
[Date "2022.10.18"]
[WhiteClock "0:00:04"]
[BlackClock "0:00:05"]

1. e4 {[%clk 0:02:33]}  c6 {[%clk 0:02:59]} 2. d4 {[%clk 0:02:31]}  d5 {[%clk 0:03:00]} 3. Nd2 {[%clk 0:02:31]}  dxe4 {[%clk 0:03:00]} 4. Nxe4 {[%clk 0:02:32]}  Nd7 {[%clk 0:03:00]} 5. Nf3 {[%clk 0:02:28]}  Ngf6 {[%clk 0:03:00]} 6. Nxf6+ {[%clk 0:02:29]}  Nxf6 {[%clk 0:03:01]} 7. c3 {[%clk 0:02:30]}  Bg4 {[%clk 0:03:01]} 8. h3 {[%clk 0:02:30]}  Bh5 {[%clk 0:03:00]} 9. g4 {[%clk 0:02:27]}  Bg6 {[%clk 0:03:00]} 10. Ne5 {[%clk 0:02:28]}  Be4 {[%clk 0:02:39]} 11. f3 {[%clk 0:02:24]}  Bd5 {[%clk 0:02:39]} 12. Bf4 {[%clk 0:02:16]}  g6 {[%clk 0:02:32]} 13. Qd2 {[%clk 0:02:08]}  h5 {[%clk 0:02:20]} 14. Rg1 {[%clk 0:01:58]}  Bg7 {[%clk 0:02:12]} 15. Bd3 {[%clk 0:01:58]}  hxg4 {[%clk 0:02:07]} 16. hxg4 {[%clk 0:01:57]}  Nd7 {[%clk 0:02:03]} 17. Nc4 {[%clk 0:01:29]}  Bxf3 {[%clk 0:01:27]} 18. Qe3 {[%clk 0:01:29]}  Bd5 {[%clk 0:01:27]} 19. Nd6+ {[%clk 0:00:46]}  Kf8 {[%clk 0:01:26]} 20. c4 {[%clk 0:00:37]}  exd6 {[%clk 0:00:50]} 21. cxd5 {[%clk 0:00:27]}  Nb6 {[%clk 0:00:50]} 22. Qg3 {[%clk 0:00:18]}  Bxd4 {[%clk 0:00:29]} 23. Bxd6+ {[%clk 0:00:18]}  Kg8 {[%clk 0:00:28]} 24. Rf1 {[%clk 0:00:10]}  Bxb2 {[%clk 0:00:26]} 25. Rb1 {[%clk 0:00:09]}  Bc3+ {[%clk 0:00:26]} 26. Kd1 {[%clk 0:00:09]}  Nxd5 {[%clk 0:00:26]} 27. Rxb7 {[%clk 0:00:08]}  Rh7 {[%clk 0:00:21]} 28. g5 {[%clk 0:00:04]}  Bd4 {[%clk 0:00:19]} 29. Kc1 {[%clk 0:00:03]}  a5 {[%clk 0:00:13]} 30. a4 {[%clk 0:00:03]}  Nb4 {[%clk 0:00:13]} 31. Bc4 {[%clk 0:00:03]}  Nd5 {[%clk 0:00:13]} 32. Qg4 {[%clk 0:00:03]}  Be3+ {[%clk 0:00:09]} 33. Kc2 {[%clk 0:00:02]}  Qxd6 {[%clk 0:00:10]} 34. Bxd5 {[%clk 0:00:02]}  cxd5 {[%clk 0:00:09]} 35. Rf6 {[%clk 0:00:02]}  Qc5+ {[%clk 0:00:08]} 36. Kd3 {[%clk 0:00:03]}  Rc8 {[%clk 0:00:07]} 37. Rb5 {[%clk 0:00:03]}  Qc3+ {[%clk 0:00:05]} 38. Ke2 {[%clk 0:00:04]}  Qd2+ {[%clk 0:00:05]} 39. Kf3 {[%clk 0:00:04]}  Qf2# {[%clk 0:00:05]} 0-1


[Site "https://www.chess.com"]

[Event "Titled Tuesday Blitz October 18 Late 2022"]
[White "Turutin, Alexander"]
[Black "Sargsyan, Anna M."]
[WhiteFideId "4180623"]
[BlackFideId "13308130"]
[WhiteElo "2402"]
[BlackElo "2284"]
[Result "0-1"]
[Round "10"]
[TimeControl "180+1"]
[Date "2022.10.18"]
[WhiteClock "0:00:02"]
[BlackClock "0:00:33"]

1. e4 {[%clk 0:02:59]}  c6 {[%clk 0:02:59]} 2. Nf3 {[%clk 0:02:56]}  d5 {[%clk 0:03:00]} 3. Nc3 {[%clk 0:02:56]}  Bg4 {[%clk 0:03:00]} 4. h3 {[%clk 0:02:56]}  Bxf3 {[%clk 0:03:00]} 5. Qxf3 {[%clk 0:02:56]}  Nf6 {[%clk 0:03:01]} 6. Be2 {[%clk 0:02:05]}  e6 {[%clk 0:03:00]} 7. O-O {[%clk 0:02:04]}  Nbd7 {[%clk 0:03:00]} 8. d4 {[%clk 0:02:03]}  dxe4 {[%clk 0:02:59]} 9. Nxe4 {[%clk 0:02:04]}  Nxe4 {[%clk 0:02:59]} 10. Qxe4 {[%clk 0:02:05]}  Nf6 {[%clk 0:02:59]} 11. Qd3 {[%clk 0:02:06]}  Be7 {[%clk 0:02:57]} 12. b3 {[%clk 0:02:03]}  O-O {[%clk 0:02:57]} 13. Bb2 {[%clk 0:02:03]}  Qc7 {[%clk 0:02:58]} 14. Qf3 {[%clk 0:01:54]}  Rad8 {[%clk 0:02:57]} 15. c4 {[%clk 0:01:45]}  Nd7 {[%clk 0:02:53]} 16. Rfd1 {[%clk 0:01:44]}  Bf6 {[%clk 0:02:54]} 17. a3 {[%clk 0:01:26]}  Rfe8 {[%clk 0:02:51]} 18. Bd3 {[%clk 0:00:35]}  Nf8 {[%clk 0:02:45]} 19. Bc2 {[%clk 0:00:33]}  Rd7 {[%clk 0:02:45]} 20. Qe4 {[%clk 0:00:31]}  Red8 {[%clk 0:02:44]} 21. Rd2 {[%clk 0:00:24]}  Ng6 {[%clk 0:02:23]} 22. Rad1 {[%clk 0:00:23]}  Qf4 {[%clk 0:02:22]} 23. Qxf4 {[%clk 0:00:13]}  Nxf4 {[%clk 0:02:19]} 24. Be4 {[%clk 0:00:05]}  Bxd4 {[%clk 0:01:57]} 25. Kf1 {[%clk 0:00:05]}  e5 {[%clk 0:01:49]} 26. g3 {[%clk 0:00:05]}  Ne6 {[%clk 0:01:48]} 27. Bf5 {[%clk 0:00:05]}  Kf8 {[%clk 0:01:37]} 28. Bxe6 {[%clk 0:00:05]}  fxe6 {[%clk 0:01:38]} 29. Bc1 {[%clk 0:00:04]}  Kf7 {[%clk 0:01:37]} 30. f3 {[%clk 0:00:03]}  Kf6 {[%clk 0:01:37]} 31. Ke2 {[%clk 0:00:02]}  b5 {[%clk 0:01:37]} 32. cxb5 {[%clk 0:00:02]}  cxb5 {[%clk 0:01:38]} 33. Rc2 {[%clk 0:00:02]}  a5 {[%clk 0:01:32]} 34. h4 {[%clk 0:00:03]}  h6 {[%clk 0:01:31]} 35. Be3 {[%clk 0:00:02]}  a4 {[%clk 0:01:28]} 36. bxa4 {[%clk 0:00:02]}  bxa4 {[%clk 0:01:28]} 37. Rc4 {[%clk 0:00:03]}  Rb7 {[%clk 0:01:08]} 38. Bxd4 {[%clk 0:00:03]}  exd4 {[%clk 0:01:08]} 39. Rdxd4 {[%clk 0:00:04]}  Rb2+ {[%clk 0:01:08]} 40. Ke1 {[%clk 0:00:04]}  Rdb8 {[%clk 0:01:04]} 41. Rxa4 {[%clk 0:00:03]}  Rg2 {[%clk 0:01:00]} 42. Rf4+ {[%clk 0:00:03]}  Kg6 {[%clk 0:00:59]} 43. Rab4 {[%clk 0:00:03]}  Ra8 {[%clk 0:00:57]} 44. Rg4+ {[%clk 0:00:03]}  Kh7 {[%clk 0:00:57]} 45. Rb3 {[%clk 0:00:04]}  Rc8 {[%clk 0:00:56]} 46. Kf1 {[%clk 0:00:03]}  Ra2 {[%clk 0:00:55]} 47. Re4 {[%clk 0:00:04]}  Rcc2 {[%clk 0:00:39]} 48. Rxe6 {[%clk 0:00:04]}  Rf2+ {[%clk 0:00:36]} 49. Kg1 {[%clk 0:00:04]}  Rg2+ {[%clk 0:00:36]} 50. Kf1 {[%clk 0:00:04]}  Rxg3 {[%clk 0:00:34]} 51. Re7 {[%clk 0:00:04]}  Rh3 {[%clk 0:00:34]} 52. Rbb7 {[%clk 0:00:02]}  Rh1# {[%clk 0:00:33]} 0-1


[Site "https://www.chess.com"]

[Event "Titled Tuesday Blitz October 18 Late 2022"]
[White "Urazayev, Arystanbek"]
[Black "Goryachkina, Aleksandra"]
[WhiteFideId "13709810"]
[BlackFideId "4147103"]
[WhiteElo "2441"]
[BlackElo "2484"]
[Result "1-0"]
[Round "10"]
[TimeControl "180+1"]
[Date "2022.10.18"]
[WhiteClock "0:00:56"]
[BlackClock "0:00:01"]

1. d4 {[%clk 0:03:00]}  Nf6 {[%clk 0:02:59]} 2. c4 {[%clk 0:03:00]}  e6 {[%clk 0:02:59]} 3. Nf3 {[%clk 0:03:01]}  d5 {[%clk 0:02:59]} 4. g3 {[%clk 0:03:01]}  Be7 {[%clk 0:02:58]} 5. Bg2 {[%clk 0:03:01]}  O-O {[%clk 0:02:58]} 6. Nc3 {[%clk 0:03:01]}  c6 {[%clk 0:02:50]} 7. O-O {[%clk 0:03:01]}  b6 {[%clk 0:02:50]} 8. Qd3 {[%clk 0:03:01]}  Ba6 {[%clk 0:02:47]} 9. b3 {[%clk 0:03:01]}  Nbd7 {[%clk 0:02:45]} 10. e4 {[%clk 0:03:01]}  Rc8 {[%clk 0:02:35]} 11. a4 {[%clk 0:02:51]}  Bb4 {[%clk 0:02:23]} 12. Ba3 {[%clk 0:02:48]}  Bxc3 {[%clk 0:02:19]} 13. Qxc3 {[%clk 0:02:45]}  Nxe4 {[%clk 0:02:18]} 14. Qe3 {[%clk 0:02:36]}  Re8 {[%clk 0:02:18]} 15. Ne5 {[%clk 0:02:37]}  Ndf6 {[%clk 0:02:08]} 16. Rac1 {[%clk 0:02:33]}  Nd6 {[%clk 0:01:50]} 17. Rfd1 {[%clk 0:02:29]}  Nf5 {[%clk 0:01:42]} 18. Qf4 {[%clk 0:02:26]}  h6 {[%clk 0:01:17]} 19. h4 {[%clk 0:02:26]}  Bb7 {[%clk 0:01:08]} 20. Bh3 {[%clk 0:02:22]}  Ne7 {[%clk 0:00:33]} 21. Re1 {[%clk 0:02:21]}  Nf5 {[%clk 0:00:14]} 22. Rcd1 {[%clk 0:02:04]}  Ne4 {[%clk 0:00:10]} 23. Bxf5 {[%clk 0:01:47]}  exf5 {[%clk 0:00:09]} 24. Qxf5 {[%clk 0:01:48]}  Qf6 {[%clk 0:00:07]} 25. Qxf6 {[%clk 0:01:43]}  Nxf6 {[%clk 0:00:08]} 26. c5 {[%clk 0:01:42]}  bxc5 {[%clk 0:00:07]} 27. Bxc5 {[%clk 0:01:42]}  a6 {[%clk 0:00:06]} 28. f3 {[%clk 0:01:41]}  Re6 {[%clk 0:00:06]} 29. Kf2 {[%clk 0:01:40]}  Rce8 {[%clk 0:00:06]} 30. g4 {[%clk 0:01:40]}  Nh7 {[%clk 0:00:04]} 31. b4 {[%clk 0:01:25]}  f6 {[%clk 0:00:03]} 32. Nd3 {[%clk 0:01:26]}  Rxe1 {[%clk 0:00:03]} 33. Nxe1 {[%clk 0:01:27]}  Nf8 {[%clk 0:00:03]} 34. Nd3 {[%clk 0:01:23]}  Ne6 {[%clk 0:00:03]} 35. Bb6 {[%clk 0:01:23]}  Bc8 {[%clk 0:00:03]} 36. h5 {[%clk 0:01:21]}  Kf7 {[%clk 0:00:04]} 37. Kg3 {[%clk 0:01:18]}  Nf8 {[%clk 0:00:03]} 38. Rc1 {[%clk 0:01:13]}  Bd7 {[%clk 0:00:03]} 39. Nc5 {[%clk 0:01:13]}  Bc8 {[%clk 0:00:03]} 40. Nb3 {[%clk 0:01:12]}  Bd7 {[%clk 0:00:03]} 41. Bc5 {[%clk 0:01:10]}  Ne6 {[%clk 0:00:03]} 42. Bd6 {[%clk 0:01:09]}  Ng5 {[%clk 0:00:03]} 43. Nc5 {[%clk 0:01:09]}  Bc8 {[%clk 0:00:03]} 44. Bf4 {[%clk 0:01:06]}  Ne6 {[%clk 0:00:03]} 45. Nxe6 {[%clk 0:01:06]}  Rxe6 {[%clk 0:00:02]} 46. b5 {[%clk 0:01:07]}  axb5 {[%clk 0:00:02]} 47. axb5 {[%clk 0:01:08]}  Bb7 {[%clk 0:00:03]} 48. b6 {[%clk 0:01:05]}  Re7 {[%clk 0:00:02]} 49. Ra1 {[%clk 0:01:05]}  Rd7 {[%clk 0:00:02]} 50. Bd2 {[%clk 0:01:01]}  Ke6 {[%clk 0:00:02]} 51. Bb4 {[%clk 0:01:01]}  Rf7 {[%clk 0:00:01]} 52. Ra7 {[%clk 0:00:59]}  Rd7 {[%clk 0:00:01]} 53. Bd2 {[%clk 0:00:57]}  f5 {[%clk 0:00:01]} 54. Bf4 {[%clk 0:00:56]}  fxg4 {[%clk 0:00:01]} 55. fxg4 {[%clk 0:00:56]}  Bc8 {[%clk 0:00:01]} 56. Bc7 {[%clk 0:00:56]} 1-0


[Site "https://www.chess.com"]

[Event "Titled Tuesday Blitz October 18 Late 2022"]
[White "Ventura Bolet, Maxim"]
[Black "Aghasiyev, Kamal"]
[WhiteFideId "22238824"]
[BlackFideId "13402854"]
[WhiteElo "2186"]
[BlackElo "2341"]
[Result "0-1"]
[Round "10"]
[TimeControl "180+1"]
[Date "2022.10.19"]
[WhiteClock "0:00:06"]
[BlackClock "0:01:38"]

1. Nf3 {[%clk 0:03:00]}  d5 {[%clk 0:02:58]} 2. g3 {[%clk 0:03:00]}  Nf6 {[%clk 0:02:58]} 3. Bg2 {[%clk 0:03:00]}  e6 {[%clk 0:02:57]} 4. O-O {[%clk 0:03:00]}  Be7 {[%clk 0:02:54]} 5. c4 {[%clk 0:03:00]}  dxc4 {[%clk 0:02:52]} 6. Qa4+ {[%clk 0:02:59]}  Nbd7 {[%clk 0:02:51]} 7. Qxc4 {[%clk 0:02:59]}  c5 {[%clk 0:02:50]} 8. Qc2 {[%clk 0:02:58]}  O-O {[%clk 0:02:49]} 9. Nc3 {[%clk 0:02:57]}  a6 {[%clk 0:02:36]} 10. a4 {[%clk 0:02:55]}  b6 {[%clk 0:02:34]} 11. Ne5 {[%clk 0:02:47]}  Nxe5 {[%clk 0:02:34]} 12. Bxa8 {[%clk 0:02:47]}  Nd5 {[%clk 0:02:31]} 13. Qb3 {[%clk 0:02:20]}  c4 {[%clk 0:02:25]} 14. Qa2 {[%clk 0:02:09]}  Bd7 {[%clk 0:02:24]} 15. Bxd5 {[%clk 0:02:05]}  exd5 {[%clk 0:02:24]} 16. Nxd5 {[%clk 0:02:06]}  Bc5 {[%clk 0:02:23]} 17. Ne3 {[%clk 0:01:56]}  Bh3 {[%clk 0:02:16]} 18. Re1 {[%clk 0:01:30]}  Qa8 {[%clk 0:02:15]} 19. f3 {[%clk 0:01:26]}  Nxf3+ {[%clk 0:02:07]} 20. exf3 {[%clk 0:01:26]}  Qxf3 {[%clk 0:02:07]} 21. d4 {[%clk 0:01:17]}  Bxd4 {[%clk 0:02:06]} 22. b4 {[%clk 0:01:07]}  cxb3 {[%clk 0:02:04]} 23. Qe2 {[%clk 0:00:51]}  Qxe2 {[%clk 0:02:00]} 24. Rxe2 {[%clk 0:00:52]}  Bxa1 {[%clk 0:02:01]} 25. Bb2 {[%clk 0:00:46]}  Bxb2 {[%clk 0:01:57]} 26. Rxb2 {[%clk 0:00:47]}  Be6 {[%clk 0:01:58]} 27. Kf2 {[%clk 0:00:35]}  Rd8 {[%clk 0:01:54]} 28. Ke2 {[%clk 0:00:35]}  Rd4 {[%clk 0:01:54]} 29. Rd2 {[%clk 0:00:29]}  Rxd2+ {[%clk 0:01:50]} 30. Kxd2 {[%clk 0:00:29]}  f5 {[%clk 0:01:50]} 31. Kc3 {[%clk 0:00:29]}  g5 {[%clk 0:01:50]} 32. h4 {[%clk 0:00:27]}  f4 {[%clk 0:01:49]} 33. gxf4 {[%clk 0:00:27]}  gxh4 {[%clk 0:01:49]} 34. f5 {[%clk 0:00:26]}  h3 {[%clk 0:01:43]} 35. fxe6 {[%clk 0:00:11]}  h2 {[%clk 0:01:41]} 36. e7 {[%clk 0:00:11]}  Kf7 {[%clk 0:01:40]} 37. Ng4 {[%clk 0:00:06]}  h1=Q {[%clk 0:01:40]} 38. Nf6 {[%clk 0:00:06]}  Qa1+ {[%clk 0:01:38]} 0-1


[Site "https://www.chess.com"]

[Event "Titled Tuesday Blitz October 18 Late 2022"]
[White "Yeletsky, Ivan"]
[Black "Radovic, Janko"]
[WhiteFideId "24180327"]
[BlackFideId "911518"]
[WhiteElo "2391"]
[BlackElo "2318"]
[Result "1-0"]
[Round "10"]
[TimeControl "180+1"]
[Date "2022.10.18"]
[WhiteClock "0:01:22"]
[BlackClock "0:00:58"]

1. Nf3 {[%clk 0:03:00]}  Nf6 {[%clk 0:02:58]} 2. g3 {[%clk 0:03:01]}  e6 {[%clk 0:02:59]} 3. Bg2 {[%clk 0:03:01]}  d5 {[%clk 0:03:00]} 4. O-O {[%clk 0:03:02]}  Be7 {[%clk 0:03:00]} 5. d3 {[%clk 0:03:02]}  O-O {[%clk 0:03:01]} 6. Bf4 {[%clk 0:02:59]}  c5 {[%clk 0:03:01]} 7. Na3 {[%clk 0:02:58]}  Nc6 {[%clk 0:03:01]} 8. e4 {[%clk 0:02:58]}  b6 {[%clk 0:03:00]} 9. e5 {[%clk 0:02:54]}  Nd7 {[%clk 0:03:00]} 10. Re1 {[%clk 0:02:54]}  Bb7 {[%clk 0:02:59]} 11. c4 {[%clk 0:02:52]}  d4 {[%clk 0:02:53]} 12. h4 {[%clk 0:02:47]}  a6 {[%clk 0:02:35]} 13. Nc2 {[%clk 0:02:45]}  b5 {[%clk 0:02:35]} 14. b3 {[%clk 0:02:45]}  bxc4 {[%clk 0:02:26]} 15. bxc4 {[%clk 0:02:46]}  a5 {[%clk 0:02:24]} 16. Re2 {[%clk 0:02:28]}  Qc7 {[%clk 0:02:21]} 17. Qd2 {[%clk 0:02:20]}  Nb4 {[%clk 0:02:19]} 18. Nce1 {[%clk 0:02:18]}  Bc6 {[%clk 0:02:04]} 19. a3 {[%clk 0:02:13]}  Na6 {[%clk 0:02:05]} 20. Nh2 {[%clk 0:02:09]}  Rfb8 {[%clk 0:01:59]} 21. h5 {[%clk 0:01:53]}  a4 {[%clk 0:01:54]} 22. h6 {[%clk 0:01:53]}  g6 {[%clk 0:01:53]} 23. Ng4 {[%clk 0:01:51]}  Rb3 {[%clk 0:01:50]} 24. Bg5 {[%clk 0:01:45]}  Bxg5 {[%clk 0:01:22]} 25. Qxg5 {[%clk 0:01:46]}  Bxg2 {[%clk 0:01:22]} 26. Nf6+ {[%clk 0:01:40]}  Kf8 {[%clk 0:01:15]} 27. Nxh7+ {[%clk 0:01:38]}  Ke8 {[%clk 0:01:13]} 28. Kxg2 {[%clk 0:01:34]}  Qd8 {[%clk 0:01:11]} 29. Qf4 {[%clk 0:01:27]}  Qe7 {[%clk 0:01:07]} 30. Nf3 {[%clk 0:01:22]}  Rxd3 {[%clk 0:00:58]} 31. Qe4 {[%clk 0:01:22]} 1-0


[Site "https://www.chess.com"]

[Event "Titled Tuesday Blitz October 18 Late 2022"]
[White "Zakaryan, David"]
[Black "Yurtseven, Melih"]
[WhiteFideId "24101923"]
[BlackFideId "6312160"]
[WhiteElo "2409"]
[BlackElo "2218"]
[Result "1-0"]
[Round "10"]
[TimeControl "180+1"]
[Date "2022.10.18"]
[WhiteClock "0:01:06"]
[BlackClock "0:00:08"]

1. e4 {[%clk 0:03:00]}  c5 {[%clk 0:02:57]} 2. Nf3 {[%clk 0:02:58]}  Nc6 {[%clk 0:02:57]} 3. d4 {[%clk 0:02:59]}  cxd4 {[%clk 0:02:58]} 4. Nxd4 {[%clk 0:03:00]}  g6 {[%clk 0:02:58]} 5. c4 {[%clk 0:03:00]}  Nf6 {[%clk 0:02:56]} 6. Nc3 {[%clk 0:03:00]}  Nxd4 {[%clk 0:02:53]} 7. Qxd4 {[%clk 0:03:00]}  d6 {[%clk 0:02:54]} 8. Be2 {[%clk 0:03:00]}  Bg7 {[%clk 0:02:54]} 9. Be3 {[%clk 0:03:00]}  O-O {[%clk 0:02:54]} 10. Qd2 {[%clk 0:03:00]}  Ng4 {[%clk 0:02:52]} 11. Bxg4 {[%clk 0:02:57]}  Bxg4 {[%clk 0:02:53]} 12. O-O {[%clk 0:02:57]}  Rc8 {[%clk 0:02:51]} 13. b3 {[%clk 0:02:33]}  a6 {[%clk 0:02:47]} 14. Rac1 {[%clk 0:02:24]}  Re8 {[%clk 0:02:43]} 15. Nd5 {[%clk 0:02:15]}  Be6 {[%clk 0:02:40]} 16. Bb6 {[%clk 0:02:07]}  Qd7 {[%clk 0:02:39]} 17. Nb4 {[%clk 0:02:07]}  f5 {[%clk 0:02:30]} 18. exf5 {[%clk 0:02:07]}  Bxf5 {[%clk 0:02:25]} 19. a4 {[%clk 0:02:08]}  h5 {[%clk 0:02:10]} 20. Rcd1 {[%clk 0:02:05]}  h4 {[%clk 0:02:07]} 21. h3 {[%clk 0:02:04]}  Kh7 {[%clk 0:01:49]} 22. Nd5 {[%clk 0:02:03]}  Bh6 {[%clk 0:01:48]} 23. Be3 {[%clk 0:01:56]}  Bg7 {[%clk 0:01:45]} 24. Nb6 {[%clk 0:01:56]}  Qc6 {[%clk 0:01:35]} 25. Nxc8 {[%clk 0:01:49]}  Rxc8 {[%clk 0:01:36]} 26. Bg5 {[%clk 0:01:47]}  Re8 {[%clk 0:01:28]} 27. Rfe1 {[%clk 0:01:45]}  Qd7 {[%clk 0:01:17]} 28. Bxh4 {[%clk 0:01:44]}  Bxh3 {[%clk 0:00:56]} 29. gxh3 {[%clk 0:01:34]}  Qxh3 {[%clk 0:00:57]} 30. Qf4 {[%clk 0:01:32]}  e5 {[%clk 0:00:43]} 31. Qg3 {[%clk 0:01:28]}  Qe6 {[%clk 0:00:39]} 32. Bg5 {[%clk 0:01:25]}  Rf8 {[%clk 0:00:33]} 33. Kg2 {[%clk 0:01:25]}  Kg8 {[%clk 0:00:30]} 34. f3 {[%clk 0:01:21]}  Rf5 {[%clk 0:00:20]} 35. Bc1 {[%clk 0:01:17]}  Kf7 {[%clk 0:00:16]} 36. Qg4 {[%clk 0:01:16]}  b6 {[%clk 0:00:09]} 37. Qe4 {[%clk 0:01:09]}  Bf6 {[%clk 0:00:07]} 38. Qb7+ {[%clk 0:01:06]}  Be7 {[%clk 0:00:08]} 39. Qd5 {[%clk 0:01:06]}  Rh5 {[%clk 0:00:07]} 40. Qxe6+ {[%clk 0:01:06]}  Kxe6 {[%clk 0:00:08]} 41. Rh1 {[%clk 0:01:06]} 1-0


[Site "https://www.chess.com"]